[Event "FIDE Candidates 2024"]
[Site "Toronto"]
[Date "2024.04.04"]
[Round "1.3"]
[White "Firouzja, Alireza"]
[Black "Praggnanandhaa R"]
[Result "1/2-1/2"]
[ECO "C83"]
[WhiteElo "2760"]
[BlackElo "2747"]
[Annotator "TA"]
[PlyCount "77"]
[EventDate "2024.04.02"]
[EventType "tourn"]
[EventCountry "CAN"]
[SourceTitle "playchess.com"]
[Source "ChessBase"]
[SourceQuality "1"]
[TimeControl "40/7200:1800+30"]

{[%evp 22,77,8,0,16,0,0,0,0,0,0,0,0,0,0,0,0,0,14,0,0,0,0,0,13,6,36,0,0,0,0,0,0,0,0,0,12,0,32,38,104,0,0,0,0,0,0,0,0,0,0,0,0,0,0,0,0,0]} 1. e4 {[%emt 0:00:03]} e5 {[%emt 0:00:39]} 2. Nf3 {[%emt 0:00:06]} Nc6 {[%emt 0:00:05]} 3. Bb5 {[%emt 0:00:03][%cal Bf1b5,Bb5a4,Ba4b3,Bb3c2][%mdl 32]} a6 {[%emt 0:00:23]} 4. Ba4 {[%emt 0:00:05]} Nf6 {[%emt 0:00:06]} 5. O-O {[%emt 0:00:06]} Nxe4 {[%emt 0:00:10]} 6. d4 {[%emt 0:00:05]} b5 {[%emt 0:00:06]} 7. Bb3 {[%emt 0:00:04]} d5 {[%emt 0:00:05]} 8. dxe5 {[%emt 0:00:04]} Be6 {[%emt 0:00:04]} 9. c3 {[%emt 0:01:29]} Be7 {[%emt 0:00:48]} 10. Bc2 {[%emt 0:00:11]} Bg4 {[%emt 0:01:05]} 11. Qe1 {[%emt 0:00:11]} Nc5 {[%emt 0:01:08]} 12. Nbd2 {[%emt 0:00:23]} Ne6 {[%emt 0:01:06] Prevents Nd4.} 13. Kh1 {[%emt 0:00:24]} Bh5 {[%emt 0:02:05]} 14. Nb3 {[%emt 0:00:56]} Bxf3 {[%emt 0:02:44]} 15. gxf3 {[%emt 0:00:09]} Bg5 {[%emt 0:01:25]} 16. Rg1 {[%emt 0:00:28] Black must now prevent Bxg5.} Bxc1 {[%emt 0:02:21]} 17. Nxc1 {[%emt 0:00:09][%cal Of3f4]} Qh4 {[%emt 0:14:10]} 18. Rg4 {[%emt 0:13:20]} Qh5 {[%emt 0:09:01]} 19. Nd3 {[%emt 0:00:16]} O-O {[%emt 0:05:51][%cal Bh8f8,Bf8f6,Bf6h6,Bh6h5,Bh5h3,Bh3f3][%mdl 32]} 20. Qe2 {[%emt 0:04:31]} f5 {[%emt 0:05:41]} 21. exf6 $1 {[%emt 0:02:00]} Rxf6 {[%emt 0:00:06]} 22. f4 {[%emt 0:24:17]} Rh6 {[%emt 0:23:12][%csl Gh6][%cal Rh5h2] [#]} 23. f3 {[%emt 0:01:05]} Rf8 {[%emt 0:02:34]} 24. Qf2 {[%emt 0:35:13]} Rff6 {[%emt 0:10:48]} 25. Re1 {[%emt 0:03:45][%cal Ba1e1,Be1e2,Be2e5][%mdl 32]} Qf7 {[%emt 0:03:03]} 26. Qg3 {[%emt 0:16:50]} Rh5 {[%emt 0:03:38]} 27. a4 {[%emt 0:01:39]} Rfh6 {[%emt 0:08:12]} 28. Re2 {[%emt 0:07:01]} Rh3 {[%emt 0:03:03]} 29. Qe1 {[%emt 0:00:24]} Rxf3 {[%emt 0:05:49]} (29... Qh5 $5 30. Rgg2 Nf8 $14 (30... Qxf3 31. Kg1 $11)) 30. Nc5 {[%emt 0:00:07]} Qh5 {[%emt 0:03:30]} (30... Nxc5 $2 31. Re8+ $18) ({Better is} 30... Nf8 $1 $14) 31. Nxe6 {[%emt 0:01:38]} (31. Reg2 $1 $16 Ne5 (31... Nxc5 32. Rxg7+ Kf8 33. Rg8+ Kf7 34. Qe8+ Kf6 35. Rf8+) (31... Rxf4 $2 32. Qxe6+ Rxe6 33. Rxg7+ Kf8 34. Nxe6+ Ke8 35. Nxc7+ Kf8 36. Ne6+ Ke8 37. Nxf4 $18) 32. fxe5) 31... Qxg4 $11 {[%emt 0:00:27] The position is equal.} 32. Ng5 {[%emt 0:00:01] Dodges Qh3. Some like it hot} Ne5 {[%emt 0:03:18][%cal Og4f4] [#] And now ...Qxf4! would win.} 33. Rxe5 {[%emt 0:00:21][%cal Re5e8]} (33. Bb3 $5 c6 $8 (33... Rxf4 $2 {perishes.} 34. Rxe5 c6 35. Rxd5 $18) (33... Qxf4 $2 34. Bxd5+ Kh8 35. Nxf3 $18) 34. Rxe5 Rxh2+ 35. Kxh2 Qxf4+ 36. Kg2 Qg4+ 37. Kh2 Qf4+ 38. Kg2 Qg4+ 39. Kh1 Qh5+ 40. Kg2 Qg4+ $11) 33... Rxh2+ $1 {[%emt 0:00:07]} 34. Kxh2 {[%emt 0:00:02][%cal Re5e8]} Qh5+ {[%emt 0:00:35]} 35. Kg2 {[%emt 0:00:13] Threatening mate with Re8+.} Qg4+ {[%emt 0:00:04]} 36. Kh1 {[%emt 0:00:32][%cal Re5e8]} Qh5+ {[%emt 0:00:10]} 37. Kg2 {[%emt 0:00:03] Re8+ would kill now.} Qg4+ {[%emt 0:00:02]} 38. Kh1 {[%emt 0:00:06][%cal Re5e8]} Qh5+ {[%emt 0:00:02]} 39. Kg2 {[%emt 0:00:24] Weighted Error Value: White=0.10 (very precise) /Black=0.08 (flawless) .  Mistake:       	White=1     	Black=1      Inaccurate:     	White=1     	Black=2      OK:         	White=8     	Black=14     Best:        	White=1     	Black=2      Strong:       	White=1     	Black=1} 1/2-1/2

[Event "FIDE Candidates 2024"]
[Site "Toronto"]
[Date "2024.04.04"]
[Round "1.4"]
[White "Gukesh D"]
[Black "Vidit, Santosh Gujrathi"]
[Result "1/2-1/2"]
[ECO "D40"]
[WhiteElo "2743"]
[BlackElo "2727"]
[Annotator "TA"]
[PlyCount "42"]
[EventDate "2024.04.02"]
[EventType "tourn"]
[EventCountry "CAN"]
[SourceTitle "playchess.com"]
[Source "ChessBase"]
[SourceQuality "1"]
[TimeControl "40/7200:1800+30"]

{[%evp 15,42,11,7,0,2,0,0,21,13,0,0,0,4,0,-6,0,0,0,-4,-6,0,0,0,0,0,0,0,0,0]} 1. d4 {[%emt 0:00:04]} d5 {[%emt 0:00:57]} 2. c4 {[%emt 0:00:12]} e6 {[%emt 0:00:19]} 3. Nc3 {[%emt 0:00:59]} c5 {[%emt 0:00:21]} 4. e3 {[%emt 0:01:09]} Nf6 {[%emt 0:01:09]} 5. Nf3 {[%emt 0:00:31]} Nc6 {[%emt 0:00:57]} 6. a3 {[%emt 0:00:32]} a6 {[%emt 0:01:06]} 7. dxc5 {[%emt 0:05:27]} Bxc5 {[%emt 0:00:34]} 8. b4 {[%emt 0:00:06]} Bd6 {[%emt 0:00:13] The position is equal.} 9. Ra2 {[%emt 0:02:54]} Ne5 {[%emt 0:04:09]} 10. Rd2 {[%emt 0:01:24]} Nxf3+ {[%emt 0:00:27]} 11. gxf3 {[%emt 0:00:51]} O-O {[%emt 0:03:17]} 12. Bb2 {[%emt 0:14:36]} a5 {[%emt 0:20:08]} 13. cxd5 {[%emt 0:08:02]} e5 {[%emt 0:03:23]} 14. Nb5 {[%emt 0:06:22]} axb4 {[%emt 0:01:18]} 15. Nxd6 {[%emt 0:00:07]} Qxd6 {[%emt 0:01:00]} 16. axb4 {[%emt 0:00:05]} Qxb4 {[%emt 0:04:30]} 17. Qc2 {[%emt 0:11:26] [#] Prevents Bf5} Bg4 $1 {[%emt 0:39:57] Hoping for ...Rfc8.} 18. Bc3 {[%emt 0:16:15]} (18. fxg4 $2 {too greedy.} Rfc8 19. Qd3 Ra2 $19) 18... Qa3 {[%emt 0:02:12]} 19. Bb2 {[%emt 0:00:37] This pair of bishops is nice.} Qb4 {[%emt 0:00:34] Strongly threatening ...Rfc8.} 20. Bc3 {[%emt 0:00:09]} (20. fxg4 $2 {is the wrong capture.} Rfc8 21. Qd3 Ra2 $19) 20... Qa3 {[%emt 0:02:08]} 21. Bb2 {[%emt 0:00:38]} Qb4 $1 {[%emt 0:00:17] A rather calm draw.   Weighted Error Value: White=0.02 (flawless) /Black=0.01 (flawless) .  OK:         	White=5     	Black=6      Best:        	White=2     	Black=1      Strong:       	---       	Black=1} 1/2-1/2

[Event "FIDE Candidates 2024"]
[Site "Toronto"]
[Date "2024.04.04"]
[Round "2.1"]
[White "Praggnanandhaa R"]
[Black "Gukesh D"]
[Result "0-1"]
[ECO "E20"]
[WhiteElo "2747"]
[BlackElo "2743"]
[Annotator "TA"]
[PlyCount "66"]
[EventDate "2024.04.02"]
[EventType "tourn"]
[EventCountry "CAN"]
[SourceTitle "playchess.com"]
[Source "ChessBase"]
[SourceQuality "1"]
[TimeControl "40/7200:1800+30"]

{[%evp 26,66,-45,-104,-107,-144,-15,-25,-10,-154,-43,-41,-39,-126,-65,-106,-59,-66,-4,-29,-27,-10,-20,-54,-45,-161,-156,-231,-236,-234,-238,-284,-276,-289,-275,-292,-274,-658,-733,-731,-722,-1253,-1228]} 1. d4 {[%emt 0:01:00]} d5 {[%emt 0:00:10]} 2. c4 {[%emt 0:00:06]} e6 {[%emt 0:00:29]} 3. Nf3 {[%emt 0:00:26]} Nf6 {[%emt 0:00:15]} 4. g3 {[%emt 0:00:43]} Bb4+ {[%emt 0:01:33]} 5. Nc3 {[%emt 0:04:45]} dxc4 {[%emt 0:06:52]} 6. Bg2 {[%emt 0:00:00]} O-O {[%emt 0:00:38]} 7. O-O {[%emt 0:00:00]} Nc6 {[%emt 0:01:04]} 8. a3 {[%emt 0:02:23] 8.Re1 might become the main line.} Be7 {[%emt 0:00:19]} 9. e4 {[%emt 0:11:30] E20: Nimzo-Indian: 4 g3 and 4 f3.} a6 {[%emt 0:00:58]} 10. Be3 {[%emt 0:05:04]} b5 {[%emt 0:00:42]} 11. Qe2 {[%emt 0:07:06]} Bb7 {[%emt 0:01:03]} 12. Rad1 {[%emt 0:08:05]} Na5 {[%emt 0:00:48]} 13. d5 {[%emt 0:00:00]} exd5 14. e5 {[%emt 0:03:41] [#]} (14. exd5 $15 Bc8 (14... Nxd5 15. Nxd5 Bxd5 16. Ne5 $16) 15. Rfe1) 14... Ne8 $1 $17 {[%emt 0:00:44]} 15. e6 {[%emt 0:26:35] [#]} f5 $146 {[%emt 0:00:48]} (15... fxe6 16. Bf4 c6 17. Qxe6+ Kh8 18. Ne5 $15) (15... c6 $1 $17 {And now ...Nb3 would win.} 16. exf7+ Rxf7) ({Predecessor:} 15... c6 16. exf7+ Rxf7 17. Ne5 Rf5 18. Bd4 Bd6 19. Bh3 Rf6 20. Nd7 Rh6 21. Rfe1 Nb3 {0-1 Hunger,H (2402)-Laurenc,P (2415) Paredes Memorial-A email 2014}) 16. Ne5 $1 $11 {[%emt 0:00:00]} Nf6 {[%emt 0:38:31]} 17. Qc2 {[%emt 0:05:02]} (17. Nf7 $11 {remains equal.} Qe8 (17... Rxf7 18. exf7+ Kxf7 19. g4 $17) 18. Qc2 (18. Bxd5 Nxd5 19. Nxd5 Bxd5 $11) (18. Nxd5 Nxd5 19. Bxd5 Bxd5 $11)) 17... c6 {[%emt 0:05:03]} (17... c5 $17 {Strongly threatening ...d4.} 18. Nxd5 Nxd5) 18. Qxf5 $15 {[%emt 0:00:00]} Qe8 19. Nf7 {[%emt 0:17:16]} (19. Rfe1 $15) 19... Bc8 {[%emt 0:03:28]} (19... Nb3 $17 20. Ne2 Nc5 (20... Rxf7 21. exf7+ Qxf7 22. Nc1 $17)) 20. Rfe1 $1 $15 {[%emt 0:02:47]} Nb7 {[%emt 0:18:42]} (20... Bxe6 21. Nh6+ gxh6 22. Qxe6+ Qf7 23. Bb6 $11) (20... Rxf7 $17 21. exf7+ Qxf7) 21. Bg5 {[%emt 0:12:06]} Ra7 {[%emt 0:23:45]} ({Better is} 21... Nc5 $1 $15 22. Bxf6 Bxe6 (22... Bxf6 23. Nxd5 cxd5 24. Qxd5 $11) 23. Nh6+ (23. Rxe6 Nxe6 24. Qxe6 Bxf6 $17) 23... Kh8 24. Bxe7 (24. Rxe6 $2 Nxe6 25. Qxe6 Rxf6 $19) (24. Bxg7+ Kxg7 25. Rxe6 Nxe6 $17) 24... Qxe7 (24... Bxf5 25. Bxc5 Qg6 26. Bxf8 $11)) 22. Bxf6 (22. Rxd5 $5 cxd5 (22... Nxd5 $2 23. Be4 $18) 23. Bxf6 (23. Nxd5 $2 Nd6 $19) 23... Bxf6 24. Nxd5 Bxe6 (24... Bxb2 $2 25. Be4 $18) 25. Rxe6 Qxf7 26. Be4 $18) 22... Bxf6 23. Bxd5 $1 {[%emt 0:01:04]} (23. Nxd5 cxd5 24. a4 Qe7 (24... bxa4 25. Qxd5 Qe7 26. Qxc4 $15) (24... Bxb2 25. Bxd5 Bc3 26. Qg5 $11) (24... Bxe6 25. Rxe6 Be7 26. Bxd5 $14) 25. Qxd5 Na5 (25... bxa4 26. Qxc4 Qc5 27. Rc1 $11) (25... Bxb2 $2 26. Be4 $19) 26. axb5 Bb7 $11 (26... Bxb2 $2 27. b6 $18)) 23... cxd5 {[%emt 0:01:18]} 24. Nxd5 {[%emt 0:01:20]} Be7 $1 {[%emt 0:02:57]} ({Don't play} 24... Bxb2 25. Qc2 Bxa3 (25... Bxe6 $2 26. Ng5 $18) 26. Nc7 $11) 25. Qg4 {[%emt 0:04:05]} (25. Nh6+ $1 $15 gxh6 26. Qg4+ Bg5 27. h4) 25... Nd8 $19 {[%emt 0:03:51]} 26. Nxd8 {[%emt 0:01:27]} (26. Qd4 $17 Nxe6 27. Qxa7 Rxf7 (27... Bc5 28. Qxc5 Nxc5 29. Rxe8 $17) 28. Nxe7+ Rxe7 (28... Qxe7 29. Qxe7 Rxe7 30. Rd8+ Nxd8 31. Rxe7 $17) 29. Qa8) 26... Bxd8 {[%emt 0:00:40]} 27. Qd4 {[%emt 0:00:32]} Rb7 {[%emt 0:00:35]} 28. Re4 {[%emt 0:00:50]} Bf6 {[%emt 0:00:42]} (28... Bxe6 29. Rde1 $11) 29. Qe3 {[%emt 0:00:00]} Be7 (29... Bxb2 30. e7 Rf7 31. Nc7 Rxc7 32. Rd8 $16) 30. h4 {[%emt 0:00:36]} Qc6 {[%emt 0:00:23]} 31. h5 $2 {[%emt 0:00:00]} (31. Re5) 31... Bc5 $19 {[%emt 0:00:49]} 32. Qg5 {[%emt 0:00:26]} Bxe6 {[%emt 0:00:13]} 33. h6 {[%emt 0:00:24]} Rxf2 {[%emt 0:00:51]} 0-1

[Event "FIDE Candidates 2024"]
[Site "Toronto"]
[Date "2024.04.04"]
[Round "2.2"]
[White "Nakamura, Hikaru"]
[Black "Vidit, Santosh Gujrathi"]
[Result "0-1"]
[ECO "C65"]
[WhiteElo "2789"]
[BlackElo "2727"]
[Annotator "TA"]
[PlyCount "58"]
[EventDate "2024.04.02"]
[EventType "tourn"]
[EventCountry "CAN"]
[SourceTitle "playchess.com"]
[Source "ChessBase"]
[SourceQuality "1"]
[TimeControl "40/7200:1800+30"]

{[%evp 12,58,16,2,14,8,75,0,0,0,2,29,0,-70,-91,-85,-50,-83,-15,-42,-14,-44,-58,-47,-44,-172,-193,-359,-349,-1127,-1083,-1245,-1234,-1291,-1271,-1849,-729,-772,-767,-764,-773,-770,-768,-995,-982,-880,-825,-791,-787]} 1. e4 {[%emt 0:00:04]} e5 {[%emt 0:00:58]} 2. Nf3 {[%emt 0:00:20]} Nc6 {[%emt 0:00:13]} 3. Bb5 {[%emt 0:00:18]} Nf6 {[%emt 0:00:26]} 4. d3 {[%emt 0:00:29]} Bc5 {[%emt 0:00:16]} 5. c3 {[%emt 0:00:10]} O-O {[%emt 0:00:31]} 6. O-O {[%emt 0:01:14]} d6 {[%emt 0:00:35]} 7. h3 {[%emt 0:05:04]} Ne7 {[%emt 0:00:32]} 8. d4 {[%emt 0:04:03]} c6 {[%emt 0:00:19]} (8... Bb6 $11) 9. Bd3 {[%emt 0:06:25]} (9. dxc5 $16 cxb5 10. cxd6) 9... Bb6 $11 {[%emt 0:00:16] The position is equal.} 10. dxe5 {[%emt 0:22:44]} dxe5 {[%emt 0:00:10]} 11. Nxe5 {[%emt 0:00:02]} Bxh3 {[%emt 0:00:21]} 12. Nc4 {[%emt 0:04:18]} (12. gxh3 $11 Qb8 13. Bf4) 12... Bg4 $15 {[%emt 0:17:34]} 13. Qc2 {[%emt 0:08:33]} Bc7 {[%emt 0:32:59] Black is more active.} 14. e5 {[%emt 0:00:42] [#]} Nd7 {[%emt 0:00:58]} (14... Nfd5 $1 $17 {Strongly threatening ...Ng6.} 15. Bxh7+ Kh8) 15. Bxh7+ $11 {[%emt 0:01:19]} Kh8 {[%emt 0:00:02][%cal Og7g6] aiming for ...g6!} 16. Bd3 {[%emt 0:20:43]} (16. Qe4 {is interesting.} f5 17. Bxf5 Bxf5 18. Qh4+) 16... b5 $36 {[%emt 0:10:53][%mdl 2048] Black has good play.} 17. Ne3 {[%emt 0:00:38]} Nxe5 {[%emt 0:00:29] Threatens to win with ...Qd6.} 18. Be2 {[%emt 0:00:04] Loses the game.} (18. Nxg4 $1 $15 Qxd3 19. Qxd3 Nxd3 20. a4) 18... f5 $19 {[%emt 0:05:02] ...Qe8 is the strong threat.} 19. f4 $2 {[%emt 0:09:11]} (19. Nxg4 fxg4 20. g3) 19... Bb6 {[%emt 0:03:19][%cal Oe7d5] Hoping for ...Nd5!} 20. Kf2 $2 {[%emt 0:20:43] [#]} ({Much worse is} 20. fxe5 Nd5 21. g3 (21. Bxg4 $2 Nxe3 22. Bxe3 Bxe3+ 23. Kh2 fxg4 $19) 21... Bxe3+ 22. Kh1 Qg5 23. Bxg4 fxg4 $19 (23... Qxg4 $2 24. Qh2+ Kg8 25. Bxe3 $19)) (20. c4 Bxe2 21. Qxe2) 20... Nd5 $1 {[%emt 0:08:07][%cal Be7d5,Bd5e3,Be3f1][%mdl 32] And now ...Qh4+ would win. Black is clearly winning.} 21. Rh1+ {[%emt 0:00:18]} (21. g3 Nxf4) 21... Kg8 {[%emt 0:00:06]} 22. fxe5 {[%emt 0:00:02]} Qg5 {[%emt 0:01:05]} 23. Ke1 {[%emt 0:00:13]} Bxe3 {[%emt 0:02:32]} (23... Nxe3 $142 24. Qb3+ Rf7) 24. Bxg4 {[%emt 0:03:17]} Qxg4 {[%emt 0:01:44]} 25. Bxe3 {[%emt 0:00:09]} Nxe3 {[%emt 0:00:10]} 26. Qe2 {[%emt 0:00:02]} Qg3+ {[%emt 0:06:17]} 27. Kd2 {[%emt 0:00:03]} Rad8+ {[%emt 0:00:49]} 28. Kc1 {[%emt 0:00:05]} Qg5 {[%emt 0:00:38]} 29. b3 {[%emt 0:00:27]} Nf1+ {[%emt 0:01:02] Weighted Error Value: White=0.90/Black=0.56.  Mistake:       	White=5     	Black=2      Inaccurate:     	White=1     	Black=2      OK:         	White=3     	Black=3      Best:        	White=1     	Black=3} 0-1

[Event "FIDE Candidates 2024"]
[Site "Toronto"]
[Date "2024.04.04"]
[Round "2.3"]
[White "Nepomniachtchi, Ian"]
[Black "Firouzja, Alireza"]
[Result "1-0"]
[ECO "C65"]
[WhiteElo "2758"]
[BlackElo "2760"]
[Annotator "RC"]
[PlyCount "89"]
[EventDate "2024.04.02"]
[EventType "tourn"]
[EventCountry "CAN"]
[SourceTitle "playchess.com"]
[Source "ChessBase"]
[SourceQuality "1"]
[TimeControl "40/7200:1800+30"]

1. e4 {[%emt 0:00:06]} e5 {[%emt 0:00:03]} 2. Nf3 {[%emt 0:00:07]} Nc6 {[%emt 0:00:03]} 3. Bb5 {[%emt 0:00:07]} Nf6 {[%emt 0:00:06]} 4. d3 {[%emt 0:00:40]} Bc5 {[%emt 0:00:07]} 5. c3 {[%emt 0:00:09]} O-O {[%emt 0:00:11]} 6. O-O {[%emt 0:00:38]} d5 {[%emt 0:00:07]} 7. exd5 {[%emt 0:01:26]} Qxd5 {[%emt 0:00:07]} 8. Bc4 {[%emt 0:00:07]} Qd8 {[%emt 0:00:06]} 9. b4 {[%emt 0:00:43]} Be7 {[%emt 0:00:10]} 10. Nbd2 {[%emt 0:02:41]} a6 {[%emt 0:00:51]} 11. a4 {[%emt 0:00:45]} Bf5 {[%emt 0:00:08]} 12. Qc2 {[%emt 0:00:54]} Nd5 {[%emt 0:00:16]} 13. Ne4 {[%emt 0:00:34]} Bg4 {[%emt 0:00:25]} 14. Qa2 {[%emt 0:00:29]} Nb6 {[%emt 0:00:38]} 15. Bb3 {[%emt 0:00:05]} Bxf3 {[%emt 0:00:55]} 16. gxf3 {[%emt 0:00:40]} Qxd3 {[%emt 0:00:09]} 17. Kg2 {[%emt 0:00:43]} Qd7 {[%emt 0:04:34]} 18. Rd1 {[%emt 0:00:17]} Qe8 {[%emt 0:12:24]} 19. h4 {[%emt 0:09:20]} Nc8 {[%emt 0:20:53]} 20. h5 {[%emt 0:12:18]} Kh8 {[%emt 0:14:52]} 21. h6 {[%emt 0:02:38]} g5 {[%emt 0:01:01]} 22. Qd2 {[%emt 0:25:02]} Nd6 {[%emt 0:04:22]} 23. Bb2 {[%emt 0:04:41]} Nf5 {[%emt 0:12:14]} 24. Qd7 {[%emt 0:05:15]} Nh4+ {[%emt 0:06:02]} 25. Kf1 {[%emt 0:01:31]} f5 {[%emt 0:00:36]} 26. Ng3 {[%emt 0:01:55]} Nxf3 {[%emt 0:03:03]} 27. b5 {[%emt 0:01:10]} f4 {[%emt 0:10:49]} 28. Ne4 {[%emt 0:09:41]} Na5 {[%emt 0:16:49]} 29. Be6 {[%emt 0:04:22]} Qg6 {[%emt 0:03:13]} 30. Qxe7 {[%emt 0:02:53]} Qxh6 {[%emt 0:00:01]} 31. Bf7 {[%emt 0:07:20]} Qh3+ {[%emt 0:02:37]} 32. Ke2 {[%emt 0:00:18]} Qf5 {[%emt 0:00:05]} 33. Bd5 {[%emt 0:03:13]} Rae8 {[%emt 0:01:39]} 34. Qxc7 {[%emt 0:00:41]} Qg4 {[%emt 0:00:01]} 35. Kd3 {[%emt 0:00:52]} Rd8 {[%emt 0:00:11]} 36. c4 {[%emt 0:02:11]} Rxd5+ {[%emt 0:00:01]} 37. cxd5 {[%emt 0:00:14]} Qh3 {[%emt 0:00:01]} 38. Ng3 {[%emt 0:03:50]} Nc4 {[%emt 0:00:00]} 39. Qxc4 {[%emt 0:03:54]} fxg3 {[%emt 0:00:01]} 40. fxg3 {[%emt 0:00:00]} axb5 {[%emt 0:00:00]} 41. axb5 {[%emt 0:08:02]} Rc8 {[%emt 0:00:20]} 42. Rh1 {[%emt 0:06:24]} Qd7 {[%emt 0:02:36]} 43. Qe4 {[%emt 0:03:09]} Kg8 {[%emt 0:04:07]} 44. Ke3 {[%emt 0:02:51]} Nd4 {[%emt 0:00:06]} 45. Bxd4 {[%emt 0:00:38]} 1-0

[Event "FIDE Candidates 2024"]
[Site "Toronto"]
[Date "2024.04.05"]
[Round "3.1"]
[White "Gukesh D"]
[Black "Nepomniachtchi, Ian"]
[Result "1/2-1/2"]
[ECO "E01"]
[WhiteElo "2743"]
[BlackElo "2758"]
[Annotator "TA"]
[PlyCount "80"]
[EventDate "2024.04.02"]
[EventType "tourn"]
[EventCountry "CAN"]
[SourceTitle "playchess.com"]
[Source "ChessBase"]
[SourceQuality "1"]
[TimeControl "40/7200:1800+30"]

{[%evp 21,80,21,34,6,7,12,14,10,18,0,10,17,26,24,51,45,44,27,29,20,52,50,52,41,71,60,58,70,81,77,80,80,84,77,83,82,104,57,60,56,72,62,66,55,86,62,77,81,74,74,85,34,43,14,14,14,21,15,15,18,18]} 1. d4 {[%emt 0:00:05]} Nf6 {[%emt 0:00:05][%cal Bg8f6,Bf6d5,Bd5b4,Bb4c6][%mdl 32]} 2. c4 {[%emt 0:00:07]} e6 {[%emt 0:00:05]} 3. g3 {[%emt 0:00:22]} d5 {[%emt 0:00:11]} 4. Bg2 {[%emt 0:00:07]} c5 {[%emt 0:00:12]} 5. cxd5 {[%emt 0:02:44]} Nxd5 {[%emt 0:00:15]} 6. Nf3 {[%emt 0:06:38]} cxd4 {[%emt 0:02:08]} 7. O-O {[%emt 0:07:13]} Bc5 {[%emt 0:00:18]} 8. Nxd4 {[%emt 0:01:06]} O-O {[%emt 0:00:29]} 9. Nb3 {[%emt 0:05:45]} Be7 {[%emt 0:00:12]} 10. e4 {[%emt 0:18:07]} Nb4 {[%emt 0:03:48]} 11. Nc3 {[%emt 0:00:42]} N8c6 {[%emt 0:06:27][%cal Bb8c6,Bc6e5,Be5c4][%mdl 32]} 12. Be3 {[%emt 0:03:57]} Qxd1 {[%emt 0:06:38]} 13. Raxd1 {[%emt 0:00:08]} Ne5 {[%emt 0:00:53]} 14. a3 {[%emt 0:05:35]} Nbc6 {[%emt 0:02:14]} 15. f4 {[%emt 0:07:31]} Nc4 {[%emt 0:03:48][%csl LRb2,LRe3]} 16. Bc1 {[%emt 0:00:06]} f6 {[%emt 0:13:28]} 17. Rfe1 {[%emt 0:04:49]} Rb8 {[%emt 0:04:57]} 18. Bf1 {[%emt 0:02:00]} Nd6 {[%emt 0:20:57]} 19. Nb5 {[%emt 0:20:58]} Nxb5 {[%emt 0:00:00]} 20. Bxb5 {[%emt 0:00:03]} Kf7 {[%emt 0:00:00]} 21. Be3 {[%emt 0:01:51]} a6 {[%emt 0:00:00]} 22. Be2 {[%emt 0:00:41]} b5 {[%emt 0:00:00]} 23. Nc5 {[%emt 0:02:36]} Rd8 {[%emt 0:06:53]} 24. Rxd8 {[%emt 0:02:26]} Bxd8 {[%emt 0:00:00]} 25. Rc1 {[%emt 0:05:03][%cal Oc5e6] White is much more active.} Bb6 {[%emt 0:00:00]} 26. Kf2 {[%emt 0:00:00][%cal Oc5a6] And now Nxa6! would win.} Bxc5 {[%emt 0:00:00]} 27. Bxc5 {[%emt 0:00:00] [#] Threatens to win with Bd6.} Bb7 {[%emt 0:00:00]} 28. Ke3 {[%emt 0:00:10]} Rd8 {[%emt 0:00:00]} 29. Bb6 {[%emt 0:01:04] A strong pair of Bishops.} ({White should play} 29. a4 $16) 29... Rd7 $14 {[%emt 0:01:16]} 30. Rd1 {[%emt 0:03:54]} Rxd1 {[%emt 0:00:00]} 31. Bxd1 {[%emt 0:00:02][%mdl 4096] Endgame. KBB-KBN} g6 {[%emt 0:08:53]} 32. Bc5 {[%emt 0:06:23]} h5 {[%emt 0:00:00]} 33. b3 {[%emt 0:03:37]} Bc8 {[%emt 0:00:00]} 34. a4 {[%emt 0:03:18]} e5 {[%emt 0:01:51]} 35. axb5 {[%emt 0:01:52]} axb5 {[%emt 0:00:00] [#]} 36. f5 {[%emt 0:01:02]} Kg7 {[%emt 0:00:00]} 37. fxg6 {[%emt 0:01:37]} Bg4 {[%emt 0:00:00] The position is equal.} 38. Bc2 {[%emt 0:00:00]} ({But not} 38. Bxg4 hxg4 39. Kd3 Kxg6 $11) 38... Be6 {[%emt 0:00:00]} 39. Kd2 {[%emt 0:00:00]} b4 {[%emt 0:00:00]} 40. Bd1 {[%emt 0:00:00]} Kxg6 {[%emt 0:00:00] Weighted Error Value: White=0.08 (flawless) /Black=0.07 (flawless) .  Mistake:       	White=2     	---        Inaccurate:     	White=1     	Black=4      OK:         	White=13    	Black=14     Best:        	White=1     	---} 1/2-1/2